Cogmind - Beta 16 @@@ ROGUE MODE // 2025.11.26 @ 20:51:15 Player: C0-2MO Result: Destroyed by P-70 Sage with High-powered Shock Rifle Performance ------------- Evolutions (4) 2000 Regions Visited (21) 4200 Robots Destroyed (275) 1375 Value Destroyed (11340) 11340 Prototype IDs (19) 380 Alien Tech Used (0) 0 Bonus (5487) 5487 TOTAL SCORE: 24782 Bonus ------- High Alert Combat Kills 1092 Follower Combat Kills 1141 Entered Garrisons 1000 Used RIF Installer 2500 Friendly Fire -246 Cogmind --------- Core Integrity 0/850 Matter 218/300 Energy 310/310 System Corruption 0% Temperature Cool (0) Movement Immobile (Siege) Location -6/Garrison Parts ------- > --- POWER (2) -------- Heavy Deuterium Engine > --- PROPULSION (4) --- Improved Heavy Treads Improved Heavy Treads > --- UTILITY (6) ------ Improved Cooling System Medium Storage Unit Relay Coupler [NC] (48) Relay Coupler [Sentry] (23) Relay Coupler [Hunter] (32) > --- WEAPON (3) ------- Beamcaster Heavy Linear Accelerator > --- INVENTORY (10) --- Damper Plating Authchip [R/NC] Authchip [Propulsion] Proton Cannon Heavy Plasma Cannon Remote Datajack Great Axe Peak State ------------ > --- POWER ------------ Light Angular Momentum Engine Antimatter Reactor > --- PROPULSION ------- Improved Heavy Treads Improved Heavy Treads > --- UTILITY ---------- Improved Cooling System Medium Storage Unit Weapon Mount Hardened Medium Armor Plating Advanced Force Field Relay Coupler [NC] > --- WEAPON ----------- Beamcaster Beamcaster Hardcell Cannon > --- INVENTORY -------- Gravity Neutralizer Hardened Medium Armor Plating Damper Plating Authchip [Propulsion] Remote Datajack Scythe [Rating: 83] Favorites ----------- Power Nuclear Core Engine Improved Deuterium Engine Power Core Nuclear Core Reactor Antimatter Reactor Propulsion Compact Wheel Treads Improved Heavy Treads Wheel Compact Wheel Hover Unit Combat Airjet Flight Unit Cesium-ion Thruster Utility High-capacity Storage Unit Device Heat Sink Storage High-capacity Storage Unit Processor Enhanced Optical Array Hackware Relay Coupler [NC] Protection Hardened Medium Armor Plating Weapon Heavy EM Pulse Gun Energy Gun Heavy EM Pulse Gun Energy Cannon Advanced Beam Cannon Ballistic Gun Assault Rifle Ballistic Cannon Heavy Linear Accelerator Launcher EMP Blaster Special Weapon Remote Datajack Impact Weapon Heavy Hammer Slashing Weapon Scythe Special Melee Weapon Improved Datajack Build | -11 -10 -10 -9 -9 -9 -8 -8 -8 -8 -8 -8 -8 -7 -7 -7 -6 -6 -6 -6 -6 -6 ------- Run | Yrd Mat Min Mat Min Exi Min Mat Gar Mat Gar Mat Gar Fac Was Fac Fac Was Fac Gar Fac Gar Slots Evolved 8 | . . . 2 . . . 2 . . . . . 2 . . 2 . . . . . Power 1 | . . . . . . . 1 . . . . . . . . . . . . . . Propulsion 2 | . . . . . . . . . . . . . 1 . . 1 . . . . . Utility 4 | . . . 1 . . . 1 . . . . . 1 . . 1 . . . . . Weapon 1 | . . . 1 . . . . . . . . . . . . . . . . . . Parts Attached 200 | 6 8 3 29 6 1 . 5 10 3 7 5 3 26 3 6 41 13 4 12 7 2 Power 33 | . . . 4 1 . . 1 2 . 2 . 1 5 1 . 10 1 1 3 1 . Engine 16 | . . . 3 . . . 1 . . 2 . 1 5 . . 2 . 1 . 1 . Core 15 | . . . 1 1 . . . 2 . . . . . . . 8 . . 3 . . Reactor 2 | . . . . . . . . . . . . . . 1 . . 1 . . . . Propulsion 34 | 2 4 . 3 . . . . 2 . . . . 10 . 2 6 3 . 2 . . Treads 13 | 1 . . 1 . . . . 1 . . . . 4 . 1 . 3 . 2 . . Leg . | . . . . . . . . . . . . . . . . . . . . . . Wheel 14 | 1 4 . 2 . . . . 1 . . . . 6 . . . . . . . . Hover 2 | . . . . . . . . . . . . . . . 1 1 . . . . . Flight 5 | . . . . . . . . . . . . . . . . 5 . . . . . Utility 78 | 2 2 1 8 1 1 . 3 4 2 3 2 1 7 1 3 20 5 1 6 4 1 Device 32 | 1 . 1 7 1 . . 1 . 1 . . . 5 . 1 8 2 . 1 3 . Storage 6 | 1 2 . . . 1 . . . . . . . 1 . . . 1 . . . . Processor 9 | . . . . . . . 1 1 . 1 . . . . 2 4 . . . . . Hackware 20 | . . . . . . . . 3 1 . 2 1 1 . . 5 . 1 4 1 1 Protection 11 | . . . 1 . . . 1 . . 2 . . . 1 . 3 2 . 1 . . Artifact . | . . . . . . . . . . . . . . . . . . . . . . Weapon 55 | 2 2 2 14 4 . . 1 2 1 2 3 1 4 1 1 5 4 2 1 2 1 Energy Gun 17 | . . . 6 3 . . . . . 1 3 . . . . . 3 1 . . . Energy Cannon 12 | . . . 7 . . . . 1 . . . . 3 . 1 . . . . . . Ballistic Gun 7 | 2 1 1 . . . . . . . . . . . . . 3 . . . . . Ballistic Cannon 2 | . . . . . . . . . . . . . . . . . 1 . 1 . . Launcher 4 | . . 1 . . . . . 1 . . . . . 1 . 1 . . . . . Special Weapon 6 | . 1 . . . . . . . . . . 1 1 . . . . 1 . 1 1 Impact Weapon 2 | . . . 1 1 . . . . . . . . . . . . . . . . . Slashing Weapon 3 | . . . . . . . . . 1 . . . . . . 1 . . . 1 . Piercing Weapon . | . . . . . . . . . . . . . . . . . . . . . . Special Melee Weapon 2 | . . . . . . . 1 . . 1 . . . . . . . . . . . Unidentified Prototypes 14 | . . . 3 . . . . . . . 1 . . . 2 6 . . 1 1 . Parts Lost 79 | . . 4 6 3 . . 2 10 . 5 1 4 6 2 7 19 . 3 5 . 2 Power 18 | . . 1 . 1 . . . 3 . 3 1 2 1 . 1 3 . . 1 . 1 Propulsion 15 | . . 1 1 . . . . 2 . . . . 3 1 1 6 . . . . . Utility 21 | . . 1 2 . . . 1 3 . . . 1 1 1 1 5 . 1 3 . 1 Weapon 25 | . . 1 3 2 . . 1 2 . 2 . 1 1 . 4 5 . 2 1 . . Highest Loss Streak 6 | . . 2 4 2 . . 2 4 . 2 1 3 4 2 5 6 . 2 2 . 2 To Critical Strikes . | . . . . . . . . . . . . . . . . . . . . . . Average Backups 12 | 2 11 13 14 14 15 14 16 15 14 17 19 17 19 21 19 7 5 6 6 7 6 Power . | . 1 1 . . . . . . . . . . . . . . . . . . . Propulsion 1 | 2 4 4 2 . . 1 2 1 . . . . . 2 2 . . . . . . Utility 5 | . 2 3 2 5 5 6 7 7 7 10 12 10 9 10 9 3 3 2 4 3 3 Weapon 4 | . 3 4 7 7 8 6 5 4 4 5 6 5 6 5 4 1 1 2 1 2 2 Tool/Special . | . . . . . . . . . . . . . . . . . . . . . . Unused Backups 29 | . 2 . 8 1 . . . 1 . . . . 1 3 . 6 1 . . . 6 Power 1 | . . . . . . . . . . . . . . 1 . . . . . . . Propulsion 3 | . 2 . 1 . . . . . . . . . . . . . . . . . . Utility 16 | . . . 1 1 . . . . . . . . 1 2 . 6 1 . . . 4 Weapon 9 | . . . 6 . . . . 1 . . . . . . . . . . . . 2 Tool/Special . | . . . . . . . . . . . . . . . . . . . . . . Average Slot Usage (%) 82 | . 90 86 95 98 67 99 87 91 90 82 72 70 81 52 60 67 68 79 82 79 76 Engine 5 | . 4 11 7 . . . . 5 9 13 10 8 8 8 6 . . 4 6 6 6 Core 3 | . . . 3 10 11 11 9 10 9 1 . . . . . 6 . . 2 6 4 Treads 5 | . 9 . 5 . . . . 2 . . . . 4 3 . 2 11 13 13 13 13 Wheel 9 | . 18 28 15 22 22 22 18 11 9 9 9 9 11 7 6 . . . . . . Flight 1 | . . . . . . . . . . . . . . . . 11 2 . . . . Device 13 | . 14 3 20 22 22 22 14 12 9 9 5 9 22 5 8 7 14 20 12 6 6 Storage 8 | . 14 14 11 11 11 11 9 9 9 9 9 9 7 7 7 1 4 6 6 6 6 Processor 2 | . . . . . . . 6 3 . 2 . . . . 13 14 5 . . . . Hackware 5 | . . . . . . . . 7 18 7 3 2 4 . . 10 3 3 11 20 20 Protection 2 | . . . . . . . 3 1 . 3 7 7 . . . 1 9 6 5 5 4 Energy Gun 7 | . . . 12 21 1 32 24 5 . 2 8 11 . . 3 . 8 16 9 . 1 Energy Cannon 6 | . . . 12 9 . . . 16 18 18 10 9 11 10 7 . . . . . . Ballistic Gun 2 | . 26 26 1 . . . . . . . . . . . . 1 . . . . . Special Weapon 1 | . 1 . . . . . . . . . . 2 5 . . . . . 4 4 2 Impact Weapon 1 | . . . 1 1 . . . 3 3 1 . 1 2 . . 4 . . . . . Peak Build Rating 83 | 6 12 12 23 23 20 21 30 36 38 39 40 38 51 61 35 56 77 78 83 79 78 Average Rating 37 | 4 8 10 18 19 14 20 24 30 36 35 35 33 35 26 26 38 64 72 73 77 76 On Entrance 33 | . 6 12 11 18 20 15 21 30 35 38 39 36 32 49 17 23 32 74 72 78 74 Avg Prop Armor Cover (%) 9 | 13 13 . 9 . . . . 9 . . . . 11 11 . 6 12 . . . . Naked Turns . | . . . . . . . . . . . . . . . . . . . . . . Heaviest Build 129 | 10 27 28 50 41 49 58 64 69 64 80 80 80 121 129 71 74 72 79 84 68 67 Greatest Support 150 | 10 28 28 28 28 28 28 28 28 28 28 28 28 84 16 56 56 140 140 150 150 150 Greatest Overweight (x) 8 | . 2 . 4 1 1 2 2 4 2 2 2 2 7 8 4 2 . . . . . Average Overweight (x) 1 | . . . 1 . 1 2 1 2 2 1 2 1 2 3 3 . . . . . . Largest Inventory Capacity 25 | 8 15 15 15 15 20 20 20 20 20 20 20 20 25 25 20 20 10 10 10 10 10 Average Capacity 14 | 7 13 15 15 15 17 20 20 20 20 20 20 20 21 20 20 7 8 10 10 10 10 Most Carried 25 | 5 15 15 15 15 18 17 20 20 19 20 20 19 25 25 20 18 10 10 10 10 10 Average Carried 13 | 2 11 13 14 14 15 15 18 16 15 18 19 17 19 20 19 7 8 9 9 9 9 Final Capacity 25 | 8 15 15 15 15 20 20 20 20 20 20 20 20 25 20 20 5 10 10 10 10 10 Final Carried 25 | 5 15 14 15 14 18 16 20 13 18 20 19 15 25 20 18 5 10 9 10 10 10 Class Distribution -------------------- 28% | Mutant 21% | Gunner 10% | Scavenger-Tank 7% | Bothacker-Mutant 6% | Scavenger-Mutant 6% | Bothacker-Tank 5% | Hacker-Sprinter 5% | Tank Dominant Class ---------------- Mutant | -10/Materials Mutant | -10/Mines Gunner | -9/Materials Gunner | -9/Mines Mutant | -9/Exiles Gunner | -8/Mines Gunner | -8/Materials Mutant | -8/Garrison Bothacker-Mutant | -8/Materials Gunner | -8/Garrison Bothacker-Mutant | -8/Materials Mutant | -8/Garrison Mutant | -7/Factory Mutant | -7/Waste Mutant | -7/Factory Hacker-Sprinter | -6/Factory Scavenger-Mutant | -6/Waste Scavenger-Tank | -6/Factory Scavenger-Tank | -6/Garrison Bothacker-Tank | -6/Factory Bothacker-Mutant | -6/Garrison Resources | -11 -10 -10 -9 -9 -9 -8 -8 -8 -8 -8 -8 -8 -7 -7 -7 -6 -6 -6 -6 -6 -6 ----------- Run | Yrd Mat Min Mat Min Exi Min Mat Gar Mat Gar Mat Gar Fac Was Fac Fac Was Fac Gar Fac Gar Matter Collected 5523 | 296 306 235 538 134 . 64 133 270 85 300 102 187 333 229 115 818 130 75 318 408 447 Remotely . | . . . . . . . . . . . . . . . . . . . . . . Salvage Created 12326 | 145 481 153 2014 255 . 82 866 905 140 705 247 573 571 1185 197 1487 . 519 1409 151 241 Parts 564 | 9 29 7 130 7 . 5 48 53 12 45 11 32 24 5 5 45 . 8 47 19 23 Haulers Intercepted 19 | . 2 . 6 . . . 3 . 1 . 1 . . . 1 5 . . . . . Recyclers Shooed 1 | . . . . . . . . . . . . . . . 1 . . . . . . Parts Field Recycled . | . . . . . . . . . . . . . . . . . . . . . . Retrieved Matter . | . . . . . . . . . . . . . . . . . . . . . . Parts Self-Destructed . | . . . . . . . . . . . . . . . . . . . . . . Prevented . | . . . . . . . . . . . . . . . . . . . . . . Parts Restored . | . . . . . . . . . . . . . . . . . . . . . . Kills | -11 -10 -10 -9 -9 -9 -8 -8 -8 -8 -8 -8 -8 -7 -7 -7 -6 -6 -6 -6 -6 -6 ------- Run | Yrd Mat Min Mat Min Exi Min Mat Gar Mat Gar Mat Gar Fac Was Fac Fac Was Fac Gar Fac Gar Combat Hostiles Destroyed 204 | . 7 5 39 6 . 1 13 20 3 20 2 12 5 6 3 17 . 10 19 2 14 Melee 8 | . . . 1 . . . . . . . . . 2 . . 4 . . 1 . . Guns 64 | . 7 5 10 2 . 1 12 4 . 3 . 3 . . . 1 . 5 11 . . Cannons 79 | . . . 21 3 . . . 8 3 6 1 9 3 1 2 1 . . 5 2 14 AOE 38 | . . . 4 1 . . 1 7 . 10 . . . 5 . 10 . . . . . Classes Destroyed 19 | 2 5 1 4 1 . 1 . 1 . 1 . . . 1 . . . . 2 . . Worker 11 | . . . 1 . . 1 2 . . . . . 4 . . 3 . . . . . Builder 10 | . 1 . 3 . . . . . . . . . . . . 1 . 1 . 4 . Tunneler 5 | 3 . 1 . 1 . . . . . . . . . . . . . . . . . Hauler 19 | . 2 . 6 . . . 3 . 1 . 1 . . . 1 5 . . . . . Recycler 9 | 1 . . . . . . 1 . . . 1 . 3 . . 3 . . . . . Operator 5 | . 1 . 2 . . . . . . . . . . . . 2 . . . . . Watcher 11 | . 1 . 5 . . . 1 . . . . . . . . 4 . . . . . Swarmer 60 | . . . 12 . . . 5 5 2 11 . 4 . . . 7 . 3 7 . 4 Cutter 2 | . . . . . . . . . . . . . . . . . . . 2 . . Grunt 72 | . 7 2 17 5 . . 5 9 . 3 1 4 1 . 2 5 . 5 2 . 4 Brawler 2 | . . . . . . . . . . . . . . . . . . . 2 . . Duelist 1 | . . . 1 . . . . . . . . . . . . . . . . . . Sentry 35 | . . . 9 . . . 2 5 1 3 1 1 2 . . . . . 6 1 4 Demolisher 1 | . . . . 1 . . . . . . . . . . . . . . . . . Specialist 2 | . . . . . . . . . . 2 . . . . . . . . . . . Hunter 8 | . . . . . . 1 1 1 . . . . . . 1 2 . 2 . . . Programmer 16 | . . . . . . . . 1 . 2 . 5 2 . . 3 . . . 1 2 Compactor 6 | . . . . . . . . . . . . . . 6 . . . . . . . Assembled 3 | . . 3 . . . . . . . . . . . . . . . . . . . Best Kill Streak 9 | 4 3 2 7 3 . 1 6 3 3 4 3 4 3 2 3 5 . 3 4 3 9 Combat Bots Only 9 | . 2 2 5 3 . 1 4 3 2 4 1 4 2 2 2 4 . 3 4 1 9 Max Kills in Single Turn 2 | 1 1 1 2 1 . 1 2 2 1 1 1 2 1 2 1 2 . 1 1 1 1 Gunslinging 1 | . . . . . . . 1 . . . . . . . . . . . . . . Exploded 2 | . . . 1 1 . . 1 2 . 1 . . . 2 . 2 . . . . . Melee 1 | . . . 1 . . . . . . . . . 1 . . 1 . . 1 . . Uniques/NPCs Destroyed . | . . . . . . . . . . . . . . . . . . . . . . Combat | -11 -10 -10 -9 -9 -9 -8 -8 -8 -8 -8 -8 -8 -7 -7 -7 -6 -6 -6 -6 -6 -6 -------- Run | Yrd Mat Min Mat Min Exi Min Mat Gar Mat Gar Mat Gar Fac Was Fac Fac Was Fac Gar Fac Gar Hostile Shots Fired 1376 | . 29 16 136 17 . 2 49 82 16 94 11 67 116 15 43 177 . 97 213 19 177 Missed 415 | . 8 1 39 7 . . 18 27 7 22 1 14 37 . 5 55 . 16 82 7 69 Hits 961 | . 21 15 97 10 . 2 31 55 9 72 10 53 79 15 38 122 . 81 131 12 108 Melee 26 | . . 5 1 . . . . 1 . . . . . 15 . . . . 4 . . Projectile 935 | . 21 10 96 10 . 2 31 54 9 72 10 53 79 . 38 122 . 81 127 12 108 AOE 3 | . . . . . . . . . . . . . . . 1 . . . 2 . . Critical Strikes 47 | . 1 . 4 2 . . 2 2 1 4 . 4 1 10 2 3 . 3 3 . 5 Actively Blocked 1 | . . . . . . . . . . . . . . . . . . 1 . . . Damage Taken 13835 | . 279 298 1080 461 . . 418 870 125 956 154 706 949 1074 575 2159 . 1094 1329 263 1045 Core 2265 | . 39 56 205 135 . . 97 200 32 120 29 63 305 5 125 468 . 89 85 99 113 Absorbed by Shields 759 | . . . 38 . . . . . . . . . 81 . 84 5 . 285 258 . 8 Reduced by Siege Mode 93 | . . . . . . . . . . . . . . . . . . 20 . . 73 Redirected to Shielding 215 | . . . . . . . 17 51 . . . . . . . 62 . 85 . . . Regen/Repaired (Parts) 1185 | . . . . . . . . 76 17 219 235 . 120 . . 9 . 395 . 114 . Core Remaining (%) 43 | 100 . 62 . . . 15 . . . . . 1 . . 37 . . . . . . Volleys Fired 635 | 6 44 32 95 13 . 2 30 49 10 38 6 26 23 29 20 41 . 43 62 15 51 Largest 3 | 2 2 2 3 3 . 3 3 3 2 3 3 3 3 3 2 1 . 3 3 1 2 Hottest 225 | 40 100 100 204 204 . 135 135 204 136 204 186 204 180 180 120 43 . 225 205 70 145 Shots Fired 1190 | 12 84 53 222 38 . 5 87 109 20 74 14 53 43 45 32 41 . 83 107 16 52 Gun 608 | 12 80 46 113 14 . 5 87 18 . 12 2 11 . . 10 22 . 81 84 . 11 Cannon 485 | . . . 106 24 . . . 81 20 48 12 42 31 28 22 10 . . 16 8 37 Launcher 54 | . . 2 2 . . . . 10 . 14 . . . 17 . 9 . . . . . Special 43 | . 4 5 1 . . . . . . . . . 12 . . . . 2 7 8 4 Kinetic 271 | 12 80 46 50 . . . . . . . . . . . . 22 . . 16 8 37 Thermal 537 | . 4 5 22 24 . . . 81 20 60 12 42 31 28 22 10 . 81 84 . 11 Explosive 26 | . . . . . . . . . . . . . . 17 . 9 . . . . . Electromagnetic 323 | . . 2 150 14 . 5 87 28 . 14 2 11 . . 10 . . . . . . Robot Hit Streak 46 | 2 5 4 16 6 . 3 10 13 4 8 5 9 6 8 3 10 . 45 46 10 14 Robot Miss Streak 5 | 3 4 5 5 2 . 1 2 5 4 3 1 3 2 2 3 3 . 2 3 2 2 Penetration Max . | . . . . . . . . . . . . . . . . . . . . . . Secondary Targets 8 | . 1 1 . . . . 4 . . . . . . . . . . 1 1 . . Max Gunslinging Chain 1 | . 1 1 . . . . 1 . . . . . . . . . . 1 1 . . Shots Hit Robots 895 | 5 46 22 125 25 . 3 55 81 11 51 14 35 50 33 21 82 . 74 112 13 37 Core Hits 381 | 5 25 10 58 9 . 3 28 37 5 29 5 21 12 18 7 38 . 18 40 4 9 Critical Kills 4 | . . . . . . . . . . 1 1 . . . . 2 . . . . . Critical Parts Destroyed 10 | . . 1 1 . . . . . . . . . . . . 8 . . . . . Critical Strikes 45 | . . 1 3 . . . 3 . . 1 1 . 4 . . 11 . 8 8 2 3 Burn 13 | . . . 1 . . . . . . . . . . . . . . 8 4 . . Meltdown 2 | . . . . . . . . . . 1 1 . . . . . . . . . . Destroy 3 | . . 1 1 . . . . . . . . . . . . 1 . . . . . Blast 7 | . . . . . . . . . . . . . . . . . . . 2 2 3 Corrupt 4 | . . . 1 . . . 3 . . . . . . . . . . . . . . Smash 9 | . . . . . . . . . . . . . . . . 9 . . . . . Sever 7 | . . . . . . . . . . . . . 4 . . 1 . . 2 . . Melee Attacks 272 | . . . 13 4 . . 4 30 3 26 5 10 23 . 1 90 . . 43 13 7 Impact 118 | . . . 13 4 . . 1 12 . 7 . 8 1 . . 72 . . . . . Slashing 112 | . . . . . . . . . 1 5 . 2 22 . 1 18 . . 43 13 7 Piercing . | . . . . . . . . . . . . . . . . . . . . . . Sneak Attacks 64 | . . . 1 . . . 3 16 1 13 2 . 9 . 1 14 . . . 4 . Combat Hostiles . | . . . . . . . . . . . . . . . . . . . . . . Follow-up Attacks . | . . . . . . . . . . . . . . . . . . . . . . Damage Inflicted 29713 | 62 595 341 3279 553 . 46 1039 1745 218 1312 190 929 1381 3856 526 5063 . 1547 4055 512 2464 Guns 6864 | 62 595 325 935 160 . 46 879 162 . 194 . 177 . . 175 267 . 1537 1268 . 82 Cannons 9167 | . . . 1597 301 . . . 1003 218 527 190 752 507 488 276 137 . . 618 173 2380 Explosions 6678 | . . 16 482 92 . . 160 421 . 591 . . . 3368 . 1548 . . . . . Melee 6957 | . . . 265 . . . . 159 . . . . 874 . 66 3098 . . 2169 326 . Ramming 47 | . . . . . . . . . . . . . . . 9 13 . 10 . 13 2 Kinetic 4841 | 62 595 325 421 . . . . . . . . . . . . 267 . . 618 173 2380 Thermal 8453 | . . . 538 393 . . 160 1094 218 721 190 752 507 488 276 229 . 1537 1268 . 82 Explosive 4824 | . . . . . . . . . . . . . . 3368 . 1456 . . . . . Electromagnetic 4591 | . . 16 2055 160 . 46 879 492 . 591 . 177 . . 175 . . . . . . Impact 3086 | . . . 265 . . . . 159 . . . . 60 . . 2602 . . . . . Slashing 3871 | . . . . . . . . . . . . . 814 . 66 496 . . 2169 326 . Piercing . | . . . . . . . . . . . . . . . . . . . . . . Highest Corruption 30 | . . 11 . 5 5 5 2 4 4 4 4 9 1 27 30 3 . . 5 5 1 Average Corruption 5 | . . 10 . 5 5 5 2 2 4 4 4 6 1 12 27 2 . . 5 4 1 Corruption Purged 12 | . . . . . . . . . . . . . 3 1 . 3 . . . 4 1 Corruption Blocked . | . . . . . . . . . . . . . . . . . . . . . . Effects 187 | . . 22 . 8 3 11 5 13 8 17 9 14 2 16 13 8 . . 20 17 1 Message Errors 46 | . . 9 . 2 1 1 2 3 2 2 2 5 . 4 1 4 . . 3 5 . Matter Fused 36 | . . 2 . 3 1 4 1 . 1 4 4 3 . 1 3 1 . . 3 5 . Heat Flow Errors 26 | . . 3 . 1 1 1 . 3 2 2 . 1 . 2 2 1 . . 6 1 . Energy Discharges 18 | . . . . 1 . . 2 2 2 3 . 1 . 3 1 . . . 2 . 1 Parts Rejected 2 | . . . . . . . . . . . . . . 1 . . . . 1 . . Parts Fused 1 | . . . . . . . . . . . . . . . . . . . 1 . . Data Loss (minor) 29 | . . 5 . . . 1 . 3 1 2 1 4 1 2 3 2 . . 3 1 . Data Loss (major) 11 | . . . . . . 2 . . . 2 1 . 1 . 1 . . . . 4 . Misfires 6 | . . 1 . . . . . . . 1 . . . . 2 . . . 1 1 . Alerts 7 | . . 2 . 1 . 1 . 1 . 1 1 . . . . . . . . . . Misdirections 2 | . . . . . . . . . . . . . . 2 . . . . . . . Weapon Failures 3 | . . . . . . 1 . 1 . . . . . 1 . . . . . . . Overload Shots . | . . . . . . . . . . . . . . . . . . . . . . Overflow Damage 2167 | . . . 96 . . . . 60 3 . . 28 149 . . 1306 . . 80 120 325 Projectiles 496 | . . . 23 . . . . 33 3 . . 28 . . . . . . 18 66 325 Explosions 145 | . . . . . . . . . . . . . . . . 145 . . . . . Melee 1526 | . . . 73 . . . . 27 . . . . 149 . . 1161 . . 62 54 . Knockbacks 15 | . . . . . . . . 3 . . . . . . . 6 . . . . 6 Impact 9 | . . . . . . . . 3 . . . . . . . 6 . . . . . Kinetic 5 | . . . . . . . . . . . . . . . . . . . . . 5 Secondary 1 | . . . . . . . . . . . . . . . . . . . . . 1 Self-Inflicted Damage 880 | . . 20 . . . . . 63 . 87 . . . 478 4 167 . . 61 . . Shots 26 | . . 1 . . . . . 4 . 5 . . . 11 . 4 . . 1 . . Rammed 6 | . . . . . . . . . . . . . . . 1 2 . . . 2 1 Targets Rammed 7 | . . . . . . . . . . . . . . . 1 2 . 1 . 2 1 Kicked . | . . . . . . . . . . . . . . . . . . . . . . Crushed 1 | . . . . . . . . . . . . . . . . . . 1 . . . Highest Temperature 482 | . 32 173 198 261 161 61 60 390 190 380 482 430 120 432 230 262 . 412 365 99 17 Average Temperature 103 | . 13 72 37 78 93 38 18 145 53 120 190 156 42 145 65 59 . 152 93 33 12 Received Heat Transfer 3096 | . 174 36 408 117 . . 117 297 45 234 45 18 195 . 264 342 . 374 199 30 201 Effects 39 | . . . . . . . . 14 . 1 6 5 . 2 1 . . 7 3 . . Shutdowns 9 | . . . . . . . . 3 . 1 2 1 . 1 . . . 1 . . . Energy Bleed 4 | . . . . . . . . 1 . . 1 1 . . 1 . . . . . . Interference 20 | . . . . . . . . 8 . . 2 2 . . . . . 6 2 . . Short Circuit 2 | . . . . . . . . 1 . . . 1 . . . . . . . . . Damage (minor) 3 | . . . . . . . . 1 . . . . . 1 . . . . 1 . . Damage (major) 1 | . . . . . . . . . . . 1 . . . . . . . . . . Siege Activations 3 | . . . . . . . . . . . . . . . . . . 2 . . 1 Total Turns 106 | . . . . . . . . . . . . . . . . . . 60 . . 46 Longest Duration 46 | . . . . . . . . . . . . . . . . . . 39 . . 46 Martial Activations . | . . . . . . . . . . . . . . . . . . . . . . Shielding Activations . | . . . . . . . . . . . . . . . . . . . . . . Robots Disrupted 1 | . . . . . . . 1 . . . . . . . . . . . . . . Combat Hostiles 1 | . . . . . . . 1 . . . . . . . . . . . . . . Robots Corrupted 13 | . . . 3 . . . . 1 . . . . . . 1 8 . . . . . Combat Hostiles 6 | . . . 3 . . . . 1 . . . . . . 1 1 . . . . . Parts Fried 31 | . . . 15 1 . . 1 . . 1 . . . . 1 12 . . . . . Impact Corruptions 34 | . . . 1 . . . . 2 . . . . . . . 31 . . . . . Robots Melted 9 | . . . . . . . . . . 1 1 . . . . . . 5 2 . . Combat Hostiles 9 | . . . . . . . . . . 1 1 . . . . . . 5 2 . . Parts Melted 41 | . . . 1 . . . . 5 . 4 3 4 1 1 1 2 . 13 6 . . Heat Transferred 14914 | . . . 870 668 . . 200 1952 370 1295 333 1110 777 777 444 235 . 3256 2479 . 148 Parts Sabotaged . | . . . . . . . . . . . . . . . . . . . . . . Parts Stolen . | . . . . . . . . . . . . . . . . . . . . . . Parts Stripped . | . . . . . . . . . . . . . . . . . . . . . . Power Chain Reactions 15 | . . . 5 1 . . 4 3 . 2 . . . . . . . . . . . Alert | -11 -10 -10 -9 -9 -9 -8 -8 -8 -8 -8 -8 -8 -7 -7 -7 -6 -6 -6 -6 -6 -6 ------- Run | Yrd Mat Min Mat Min Exi Min Mat Gar Mat Gar Mat Gar Fac Was Fac Fac Was Fac Gar Fac Gar Maximum Alert Level 4 | . . . 3 1 . . 1 3 1 3 2 2 1 . . 3 1 . 4 2 3 Low Security (%) 42 | 100 100 100 15 . . 100 81 5 . . . . 86 100 100 57 27 100 22 . . Level 1 19 | . . . 22 100 . . 18 23 100 10 7 45 13 . . 26 72 . 12 . 9 Level 2 25 | . . . 47 . . . . 39 . 39 92 54 . . . 2 . . 25 100 62 Level 3 13 | . . . 15 . . . . 30 . 49 . . . . . 14 . . 38 . 27 Level 4 . | . . . . . . . . . . . . . . . . . . . 1 . . Level 5 . | . . . . . . . . . . . . . . . . . . . . . . High Security . | . . . . . . . . . . . . . . . . . . . . . . Max Security . | . . . . . . . . . . . . . . . . . . . . . . Peak Influence 1113 | 10 93 30 783 324 . 30 223 804 384 1003 488 553 289 17 40 962 333 145 1113 583 795 Initial 583 | . . 3 . 304 . . . 134 384 232 488 280 289 17 . . 333 100 56 583 367 Average 325 | 3 43 2 477 271 . 2 141 528 356 715 442 421 88 2 9 241 241 101 527 508 560 Influence Increases 9428 | 20 322 46 1426 190 . 35 498 875 174 991 123 373 268 42 77 1628 . 269 1167 316 588 Destroy 0b10 Robot/C 4760 | . 140 40 780 120 . 20 280 500 100 660 80 300 140 . 60 340 . 200 500 120 380 Destroy 0b10 Robot/NC 395 | 20 25 5 85 5 . 5 35 . 15 . 15 . 35 . 5 90 . 5 30 20 . Destroy Leader 792 | . 46 . 242 30 . 10 68 20 26 50 12 40 40 . 12 86 . 30 10 40 30 Allied During Kill 305 | . . . . . . . 2 59 13 80 12 25 2 . . . . . 18 22 72 Successful Hack 384 | . 46 . 120 . . . 27 18 4 7 4 . 20 . . 50 . 19 7 48 14 Select Force Hacks 200 | . 60 . 90 . . . . . . . . . . . . 50 . . . . . Disable Machine 450 | . . . 30 30 . . 15 . . . . . . . . 330 . . . 45 . Anti-Garrison Action 750 | . . . . . . . . 100 . 100 . . . . . . . . 500 . 50 Destroy Structure 477 | . 5 1 34 5 . . 11 58 1 49 . 8 1 42 . 157 . . 42 21 42 Partial Spotted 120 | . . . . . . . . . . . . . . . . 120 . . . . . Lose Combat Pursuer 795 | . . . 45 . . . 60 120 15 45 . . 30 . . 405 . 15 60 . . Influence Decreases 8633 | 20 314 54 646 666 304 35 291 293 605 346 695 251 772 91 77 676 809 331 135 904 318 Entered New Map 3726 | . . 5 . 476 304 . . 73 405 126 515 151 264 32 . . 619 43 25 530 158 Time Decay 3498 | 20 314 49 586 160 . 35 261 . 140 . 170 . 407 48 70 476 190 238 . 334 . Lost Part 629 | . . . 60 30 . . 20 100 . 50 10 40 21 11 7 180 . 30 50 . 20 Lost Ally 780 | . . . . . . . 10 120 60 170 . 60 80 . . 20 . 20 60 40 140 Squads Dispatched 54 | . 3 . 9 2 . . 2 . . . 2 . 4 . 2 19 . 3 . 8 . Investigation 31 | . 2 . 6 2 . . 2 . . . 2 . 2 . 1 7 . 2 . 5 . Extermination 8 | . . . . . . . . . . . . . 1 . . 5 . 1 . 1 . Reinforcement 12 | . 1 . 3 . . . . . . . . . 1 . 1 5 . . . 1 . Assault 1 | . . . . . . . . . . . . . . . . 1 . . . . . Garrison 2 | . . . . . . . . . . . . . . . . 1 . . . 1 . Intercept . | . . . . . . . . . . . . . . . . . . . . . . Searches Triggered . | . . . . . . . . . . . . . . . . . . . . . . Construction Impeded 4 | . . . 1 . . . . . . . . . 1 . . 2 . . . . . Haulers Reinforced 4 | . . . . . . . . . . . . . . . 1 3 . . . . . Active Scanning Responses . | . . . . . . . . . . . . . . . . . . . . . . Cargo Convoy Interrupts . | . . . . . . . . . . . . . . . . . . . . . . Alert ID Control Effect 1 | . . . . . . . . . . . . . . . . . . . . . 1 Stealth | -11 -10 -10 -9 -9 -9 -8 -8 -8 -8 -8 -8 -8 -7 -7 -7 -6 -6 -6 -6 -6 -6 --------- Run | Yrd Mat Min Mat Min Exi Min Mat Gar Mat Gar Mat Gar Fac Was Fac Fac Was Fac Gar Fac Gar Distress Signals 16 | . 1 1 4 1 . . 2 . 1 . 1 . 3 . . 2 . . . . . Communications Jammed . | . . . . . . . . . . . . . . . . . . . . . . Distress Signals . | . . . . . . . . . . . . . . . . . . . . . . Times Spotted 391 | . 14 5 54 5 . 1 25 31 10 31 9 15 23 6 5 74 . 14 33 11 25 Peak Tracking Total 12 | . 4 2 7 3 . 1 4 8 5 5 5 5 5 5 8 12 . 3 7 3 8 Tactical Retreats 35 | . . 1 3 . . . 3 6 1 3 . . 2 . . 12 . 1 3 . . Traps | -11 -10 -10 -9 -9 -9 -8 -8 -8 -8 -8 -8 -8 -7 -7 -7 -6 -6 -6 -6 -6 -6 ------- Run | Yrd Mat Min Mat Min Exi Min Mat Gar Mat Gar Mat Gar Fac Was Fac Fac Was Fac Gar Fac Gar Traps Triggered 21 | . . . 1 . . . 1 1 . 5 . . 4 . 1 7 . . 1 . . Indirectly 1 | . . . . . . . . . . 1 . . . . . . . . . . . Trap Hack Attempts 47 | . . . . . . . 47 . . . . . . . . . . . . . . Triggered . | . . . . . . . . . . . . . . . . . . . . . . Disarmed . | . . . . . . . . . . . . . . . . . . . . . . Reprogrammed 4 | . . . . . . . 4 . . . . . . . . . . . . . . Reused . | . . . . . . . . . . . . . . . . . . . . . . Traps Extracted 4 | . . . . . . . 4 . . . . . . . . . . . . . . Installed . | . . . . . . . . . . . . . . . . . . . . . . Triggered . | . . . . . . . . . . . . . . . . . . . . . . Most Traps Carried 4 | . . . . . . . 4 4 4 4 4 4 4 4 4 4 . . . . . Machines | -11 -10 -10 -9 -9 -9 -8 -8 -8 -8 -8 -8 -8 -7 -7 -7 -6 -6 -6 -6 -6 -6 ---------- Run | Yrd Mat Min Mat Min Exi Min Mat Gar Mat Gar Mat Gar Fac Was Fac Fac Was Fac Gar Fac Gar Machines Disabled 47 | . . . 2 2 . . 1 4 . 2 . . . . . 22 . . 10 3 1 Max in Single Turn 8 | . . . 1 1 . . 1 1 . 1 . . . . . 8 . . 2 . 1 Garrison Relay 13 | . . . . . . . . 2 . 2 . . . . . . . . 8 . 1 Phase Generator 1 | . . . . . . . . . . . . . . . . . . . 1 . . Machines Repaired . | . . . . . . . . . . . . . . . . . . . . . . Machines Dismantled . | . . . . . . . . . . . . . . . . . . . . . . Machines Sabotaged . | . . . . . . . . . . . . . . . . . . . . . . Overloaded Fab Kills . | . . . . . . . . . . . . . . . . . . . . . . Hacking | -11 -10 -10 -9 -9 -9 -8 -8 -8 -8 -8 -8 -8 -7 -7 -7 -6 -6 -6 -6 -6 -6 --------- Run | Yrd Mat Min Mat Min Exi Min Mat Gar Mat Gar Mat Gar Fac Was Fac Fac Was Fac Gar Fac Gar Machines Accessed 86 | . 9 . 14 2 1 . 6 3 4 3 6 . 5 . . 16 . 5 3 8 1 Terminals 54 | . 6 . 10 1 . . 4 3 3 3 3 . 3 . . 9 . . 3 5 1 Fabricators 6 | . . . . . . . . . . . . . 1 . . 3 . 2 . . . Repair Stations 7 | . 1 . . . . . . . . . 1 . 1 . . 1 . 1 . 2 . Recycling Units 5 | . 2 . 2 . . . 1 . . . . . . . . . . . . . . Scanalyzers 5 | . . . 2 . . . . . . . 1 . . . . 1 . 1 . . . Garrison Access 7 | . . . . . . . 1 . 1 . 1 . . . . 2 . 1 . 1 . Total Hacks 226 | . 24 . 46 6 1 . 17 6 8 5 18 . 17 . . 37 . 17 5 17 2 Successful 128 | . 15 . 30 3 1 . 11 2 4 1 7 . 8 . . 24 . 13 1 7 1 Failed 96 | . 9 . 15 3 . . 6 4 4 4 10 . 9 . . 13 . 4 4 10 1 Catastrophic 13 | . . . 2 1 . . . 1 1 1 . . . . . 1 . 1 2 2 1 Database Lockouts 2 | . . . 1 . . . . . . . 1 . . . . . . . . . . Manual 140 | . 21 . 31 6 . . 11 . 7 . 7 . 14 . . 26 . 4 2 10 1 Terminals 152 | . 18 . 36 5 . . 11 6 6 5 8 . 13 . . 24 . . 5 13 2 Fabricators 12 | . . . . . . . . . . . . . 1 . . 4 . 7 . . . Repair Stations 19 | . 3 . . . . . . . . . 5 . 3 . . 1 . 5 . 2 . Recycling Units 9 | . 3 . 3 . . . 3 . . . . . . . . . . . . . . Scanalyzers 15 | . . . 7 . . . . . . . 2 . . . . 3 . 3 . . . Garrison Access 17 | . . . . . . . 3 . 2 . 3 . . . . 5 . 2 . 2 . Terminal Hacks 25 | . 3 . 10 2 1 . 1 2 . 1 . . . . . 2 . . 1 1 1 Record 1 | . . . . . 1 . . . . . . . . . . . . . . . . Part Schematic 1 | . . . . . . . . . . . . . . . . 1 . . . . . Robot Analysis 4 | . 2 . 2 . . . . . . . . . . . . . . . . . . Prototype ID Bank 3 | . . . 2 . . . 1 . . . . . . . . . . . . . . Open Door 4 | . . . . 1 . . . 1 . 1 . . . . . . . . 1 . . Branch Access Points 1 | . . . 1 . . . . . . . . . . . . . . . . . . Emergency Access Points 1 | . . . . . . . . . . . . . . . . . . . . . 1 Machine Index 1 | . . . . . . . . . . . . . . . . . . . . 1 . Terminal Index 2 | . 1 . 1 . . . . . . . . . . . . . . . . . . Registered Prototypes 1 | . . . 1 . . . . . . . . . . . . . . . . . . Zone Layout 5 | . . . 3 1 . . . . . . . . . . . 1 . . . . . Garrison Registry 1 | . . . . . . . . 1 . . . . . . . . . . . . . Fabricator Hacks 6 | . . . . . . . . . . . . . 1 . . 2 . 3 . . . Network Status 2 | . . . . . . . . . . . . . 1 . . 1 . . . . . Load Schematic 2 | . . . . . . . . . . . . . . . . . . 2 . . . Build 2 | . . . . . . . . . . . . . . . . 1 . 1 . . . Repair Station Hacks 7 | . 1 . . . . . . . . . 2 . . . . . . 4 . . . Scan Component 3 | . . . . . . . . . . . 1 . . . . . . 2 . . . Repair 3 | . . . . . . . . . . . 1 . . . . . . 2 . . . Refit 1 | . 1 . . . . . . . . . . . . . . . . . . . . Recycling Unit Hacks 1 | . . . . . . . 1 . . . . . . . . . . . . . . Retrieve Components 1 | . . . . . . . 1 . . . . . . . . . . . . . . Scanalyzer 12 | . . . 5 . . . . . . . 1 . . . . 3 . 3 . . . Insert Component 3 | . . . 1 . . . . . . . . . . . . 1 . 1 . . . Analyze 3 | . . . 2 . . . . . . . . . . . . . . 1 . . . Retrieve Study 6 | . . . 2 . . . . . . . 1 . . . . 2 . 1 . . . Garrison Access Hacks 9 | . . . . . . . 1 . 1 . 1 . . . . 4 . 1 . 1 . Unlock Access 7 | . . . . . . . 1 . 1 . 1 . . . . 2 . 1 . 1 . Coupler Status 2 | . . . . . . . . . . . . . . . . 2 . . . . . Unauthorized Hacks 67 | . 10 . 15 1 . . 8 . 3 . 3 . 7 . . 13 . 2 . 5 . Terminals 51 | . 8 . 12 1 . . 7 . 3 . 2 . 6 . . 10 . . . 2 . Track 2 | . . . . 1 . . . . . . . . . . . 1 . . . . . Assimilate 2 | . . . 1 . . . . . . . . . . . . 1 . . . . . Botnet 18 | . 3 . 4 . . . 3 . . . 2 . 3 . . 2 . . . 1 . Skim 28 | . 5 . 7 . . . 4 . 3 . . . 3 . . 6 . . . . . Search 1 | . . . . . . . . . . . . . . . . . . . . 1 . Fabricators 3 | . . . . . . . . . . . . . . . . 1 . 2 . . . Prioritize 1 | . . . . . . . . . . . . . . . . . . 1 . . . Download 1 | . . . . . . . . . . . . . . . . 1 . . . . . Recompile 1 | . . . . . . . . . . . . . . . . . . 1 . . . Repair Stations 4 | . . . . . . . . . . . . . 1 . . 1 . . . 2 . Patch 4 | . . . . . . . . . . . . . 1 . . 1 . . . 2 . Recycling Units 4 | . 2 . 2 . . . . . . . . . . . . . . . . . . Tunnel 4 | . 2 . 2 . . . . . . . . . . . . . . . . . . Scanalyzers 1 | . . . 1 . . . . . . . . . . . . . . . . . . Extract 1 | . . . 1 . . . . . . . . . . . . . . . . . . Garrison Access 4 | . . . . . . . 1 . . . 1 . . . . 1 . . . 1 . Reprogram 3 | . . . . . . . 1 . . . 1 . . . . . . . . 1 . Eject 1 | . . . . . . . . . . . . . . . . 1 . . . . . Data Cores Recovered 3 | . . . 1 . . . . . . . . . . . . 2 . . . . . Used 2 | . . . . . . . . . . . . . . . . 2 . . . . . Hacking Detections 66 | . 7 . 12 1 . . 5 3 4 2 6 . 3 . . 12 . 3 2 5 1 Full Trace Events 10 | . . . 2 1 . . 1 . . . 1 . . . . 2 . 1 1 1 . Feedback Events 1 | . . . . . . . . . . . . . . . . 1 . . . . . Hackware Fried 1 | . . . . . . . . . . . . . . . . 1 . . . . . Feedback Blocked . | . . . . . . . . . . . . . . . . . . . . . . Robot Schematics Acquired 1 | . . . . . . . . . . . . . . . . 1 . . . . . Robots Built 1 | . . . . . . . . . . . . . . . . . . 1 . . . Authchips . | . . . . . . . . . . . . . . . . . . . . . . Time 58 | . . . . . . . . . . . . . . . . . . 58 . . . Total Robot Build Rating 3 | . . . . . . . . . . . . . . . . . . 3 . . . Part Schematics Acquired 5 | . . . 3 . . . . . . . . . . . . 1 . 1 . . . Parts Built 2 | . . . . . . . . . . . . . . . . 2 . . . . . Authchips . | . . . . . . . . . . . . . . . . . . . . . . Time 64 | . . . . . . . . . . . . . . . . 64 . . . . . Total Part Build Rating 16 | . . . . . . . . . . . . . . . . 16 . . . . . Part Studies Acquired 6 | . . . 2 . . . . . . . 1 . . . . 2 . 1 . . . Parts Repaired 3 | . . . . . . . . . . . 1 . . . . . . 2 . . . Time 126 | . . . . . . . . . . . 38 . . . . . . 88 . . . Parts Recycled . | . . . . . . . . . . . . . . . . . . . . . . Recycled Matter . | . . . . . . . . . . . . . . . . . . . . . . Retrieved Matter . | . . . . . . . . . . . . . . . . . . . . . . Retrieved Components 9 | . . . . . . . 9 . . . . . . . . . . . . . . Parts Scanalyzed 2 | . . . 1 . . . . . . . . . . . . . . 1 . . . Part Schematics Acquired 2 | . . . 1 . . . . . . . . . . . . . . 1 . . . Parts Damaged . | . . . . . . . . . . . . . . . . . . . . . . Bothacking | -11 -10 -10 -9 -9 -9 -8 -8 -8 -8 -8 -8 -8 -7 -7 -7 -6 -6 -6 -6 -6 -6 ------------ Run | Yrd Mat Min Mat Min Exi Min Mat Gar Mat Gar Mat Gar Fac Was Fac Fac Was Fac Gar Fac Gar Used RIF Installer 5 | . . . . . . . . 2 . 1 . . . . . . . . 1 . 1 Code Merge 1 | . . . . . . . . . . . . . . . . . . . 1 . . Zone Cloak 1 | . . . . . . . . 1 . . . . . . . . . . . . . Patrol Navigation 1 | . . . . . . . . . . 1 . . . . . . . . . . . Alert ID Control 1 | . . . . . . . . . . . . . . . . . . . . . 1 Robots Hacked 36 | . . . . . . . 3 3 2 1 4 . 8 . . . . 1 5 5 4 Non-combat 8 | . . . . . . . 2 1 1 . 1 . . . . . . 1 . 2 . Combat 28 | . . . . . . . 1 2 1 1 3 . 8 . . . . . 5 3 4 Robot Hacks Applied 37 | . . . . . . . 3 3 2 1 4 . 8 . . . . 1 6 5 4 parse_system 3 | . . . . . . . 2 . . . . . . . . . . . 1 . . no_distress 1 | . . . . . . . . . . . 1 . . . . . . . . . . map_walls 2 | . . . . . . . . . . . . . . . . . . . . 2 . drop_inventory 1 | . . . . . . . . . 1 . . . . . . . . . . . . find_recycling 1 | . . . . . . . 1 . . . . . . . . . . . . . . scatter_targeting 1 | . . . . . . . . . . . . . 1 . . . . . . . . spike_heat 1 | . . . . . . . . . . . . . 1 . . . . . . . . overload_power 1 | . . . . . . . . . . . . . . . . . . . 1 . . amplify_resonance 3 | . . . . . . . . . . . . . 1 . . . . . 1 . 1 reboot_system 2 | . . . . . . . . . . 1 1 . . . . . . . . . . overwrite_iff 6 | . . . . . . . . . . . . . 3 . . . . . 3 . . formatsys_low 2 | . . . . . . . . 1 . . . . . . . . . 1 . . . formatsys_high 13 | . . . . . . . . 2 1 . 2 . 2 . . . . . . 3 3 Relay Couplers Released 55 | . . . . . . . . 11 . 8 . . . . . 4 . . 29 . 3 Ejected 4 | . . . . . . . . . . . . . . . . 4 . . . . . Machine Destruction 48 | . . . . . . . . 8 . 8 . . . . . . . . 29 . 3 Programmers 3 | . . . . . . . . 3 . . . . . . . . . . . . . Attached 15 | . . . . . . . . 2 1 . 2 1 1 . . 1 . 1 4 1 1 Merged Code Value 77 | . . . . . . . . . . . . . . . . . . . 66 . 11 Fabnet Peak Effective % . | . . . . . . . . . . . . . . . . . . . . . . Robots Rewired 20 | . . . . . . . 1 7 . 7 . . . . . . . . 2 . 3 Allies Hacked 1 | . . . . . . . . . . 1 . . . . . . . . . . . Hacks Repelled . | . . . . . . . . . . . . . . . . . . . . . . Allies | -11 -10 -10 -9 -9 -9 -8 -8 -8 -8 -8 -8 -8 -7 -7 -7 -6 -6 -6 -6 -6 -6 -------- Run | Yrd Mat Min Mat Min Exi Min Mat Gar Mat Gar Mat Gar Fac Was Fac Fac Was Fac Gar Fac Gar Total Allies 53 | . . . 1 . . . 3 10 1 9 5 . 5 1 . . . 2 5 5 6 Largest Group 8 | . . . 1 1 1 1 3 7 3 6 5 5 1 1 . . . 1 2 4 8 Highest-Rated Group 264 | . . . 10 10 10 10 53 173 55 143 79 79 16 31 . . . 23 80 155 264 Highest-Rated Ally 51 | . . . 10 10 10 10 21 39 23 40 16 16 16 31 . . . 23 51 41 47 Total Orders 7 | . . . . . . . 1 1 1 1 . . . . . 1 . 2 . . . STAY 1 | . . . . . . . 1 . . . . . . . . . . . . . . AID 5 | . . . . . . . . 1 1 1 . . . . . . . 2 . . . EXPLORE 1 | . . . . . . . . . . . . . . . . 1 . . . . . Ally Attacks 240 | . . . . . . . 2 33 26 49 20 14 11 9 . . . . 23 17 36 Total Damage 4727 | . . . . . . . 35 423 267 889 295 221 166 124 . . . . 257 794 1256 Kills 52 | . . . . . . . 1 8 4 13 3 3 2 . . . . . 6 5 7 Allies Corrupted 2 | . . . . . . . . . . 2 . . . . . . . . . . . Allies Melted 2 | . . . . . . . . . . . . . . . . . . . . 1 1 Intel | -11 -10 -10 -9 -9 -9 -8 -8 -8 -8 -8 -8 -8 -7 -7 -7 -6 -6 -6 -6 -6 -6 ------- Run | Yrd Mat Min Mat Min Exi Min Mat Gar Mat Gar Mat Gar Fac Was Fac Fac Was Fac Gar Fac Gar Active Infowar (turns) 3212 | 6 786 135 187 . . . . . . . . . . . 263 1576 257 . . 2 . Optics 2096 | . . . . . . . . . . . . . . . 263 1576 257 . . . . IFF 141 | . . . . . . . . . . . . . . . . 141 . . . . . Terrain 248 | . . 60 187 . . . . . . . . . . . . . . . . 1 . Traps 1 | . . . . . . . . . . . . . . . . . . . . 1 . Seismic 867 | 6 786 75 . . . . . . . . . . . . . . . . . . . ECM 1 | . . . . . . . . . . . . . . . . 1 . . . . . Robot Analysis Total 4 | . 2 . 2 . . . . . . . . . . . . . . . . . . Derelict Logs Recovered 3 | . . 2 . 1 . . . . . . . . . . . . . . . . . Drone Launches 3 | . . . . . . . . . . . . . . . . 3 . . . . . Drone Recoveries 1 | . . . . . . . . . . . . . . . . 1 . . . . . Exploration | -11 -10 -10 -9 -9 -9 -8 -8 -8 -8 -8 -8 -8 -7 -7 -7 -6 -6 -6 -6 -6 -6 ------------- Run | Yrd Mat Min Mat Min Exi Min Mat Gar Mat Gar Mat Gar Fac Was Fac Fac Was Fac Gar Fac Gar Turns Passed 14507 | 81 786 562 1934 331 280 450 648 889 288 920 341 380 1000 350 283 1576 384 517 1113 743 651 Spaces Moved 10137 | 62 604 483 1264 225 274 361 350 458 182 516 183 179 644 188 138 2478 243 136 479 405 285 Core 522 | 1 . . . . . . . . . . . . . . . 521 . . . . . Treads 1618 | . . . 1 . . . . . . . . . 4 . 3 87 218 136 479 405 285 Legs . | . . . . . . . . . . . . . . . . . . . . . . Wheels 6102 | 61 604 483 1263 225 274 361 350 458 182 516 183 179 640 188 135 . . . . . . Hover . | . . . . . . . . . . . . . . . . . . . . . . Flight 1895 | . . . . . . . . . . . . . . . . 1870 25 . . . . Fastest Speed 23 | 50 80 95 95 85 100 115 100 115 130 115 130 115 98 135 135 23 32 160 160 160 160 Average Speed 104 | 79 98 95 116 99 100 115 114 131 130 127 130 125 126 143 140 40 146 160 160 160 160 Slowest Speed 320 | 80 110 95 240 100 100 115 115 150 130 130 130 130 320 210 160 320 160 160 160 160 160 Overloaded Moves 1 | . . . . . . . . . . . . . . . . 1 . . . . . Propulsion Burnouts . | . . . . . . . . . . . . . . . . . . . . . . Robots Hopped 27 | . . . . . . . . . . . . . . . . 27 . . . . . Potential Cave-ins 2 | . . . . . . . . . . . . . . 2 . . . . . . . Cave-ins Triggered 1 | . . . . 1 . . . . . . . . . . . . . . . . . Exploration Rate (%) 50 | 4 91 94 91 44 60 85 39 69 22 54 26 35 20 82 5 68 89 5 63 14 42 Regions Visited 21 Branch Regions 4 Pre-discovered Areas 11 | . 3 2 3 . 1 . . . . . . . . . . 2 . . . . . Known Exits Taken 8 | . . 1 1 . . 1 1 . 1 . 1 . . . . . . 1 . 1 . Unknown Exits Taken 5 | 1 1 . . 1 1 . . . . . . . . . 1 . . . . . . Scrap Searched 4 | . . 2 . . . 2 . . . . . . . . . . . . . . . Spaces Dug 58 | . 4 . 8 3 . . 1 2 . 1 . 3 1 . . 23 . . . 10 2 Terrain Destroyed 391 | . 4 1 29 6 . . 9 8 . 12 . 3 1 67 . 152 . . 77 15 7 Melee 52 | . . . 7 3 . . 1 2 . 1 . 3 1 . . 23 . . . 9 2 Projectile 22 | . 4 1 1 . . . . . . . . . . . . 3 . . 2 6 5 AOE 317 | . . . 21 3 . . 8 6 . 11 . . . 67 . 126 . . 75 . . Terrain Rammed . | . . . . . . . . . . . . . . . . . . . . . . Walls Destroyed . | . . . . . . . . . . . . . . . . . . . . . . Machines Disabled . | . . . . . . . . . . . . . . . . . . . . . . Actions | -11 -10 -10 -9 -9 -9 -8 -8 -8 -8 -8 -8 -8 -7 -7 -7 -6 -6 -6 -6 -6 -6 --------- Run | Yrd Mat Min Mat Min Exi Min Mat Gar Mat Gar Mat Gar Fac Was Fac Fac Was Fac Gar Fac Gar Total 12519 | 78 704 522 1524 294 282 391 523 625 210 685 270 262 758 232 184 2829 269 364 653 461 399 Wait 775 | . 28 1 63 37 1 25 74 40 4 41 56 28 18 . 10 116 1 169 32 6 25 Move 10071 | 61 603 482 1263 224 273 360 349 457 181 515 182 178 644 187 137 2430 242 136 478 404 285 Hop 21 | . . . . . . . . . . . . . . . . 21 . . . . . Pick Up 98 | 5 11 1 18 2 2 1 5 4 5 4 2 . 11 1 2 6 4 2 4 3 5 Fast Attach 116 | 6 2 1 14 . . . 2 2 . 4 3 2 12 1 5 41 11 2 7 1 . Attach 63 | . . 2 9 3 . 3 2 9 1 3 2 3 2 . 4 9 1 3 4 . 3 Detach 32 | . 1 . 10 . 3 . . . . 2 2 . 1 . . 8 1 1 2 1 . Swap 163 | . 8 3 16 9 1 . 8 18 4 15 5 13 16 3 3 10 1 5 9 11 5 Drop 121 | . 7 . 23 2 2 . . 5 1 4 5 2 8 11 1 27 8 2 5 5 3 Fire 635 | 6 44 32 95 13 . 2 30 49 10 38 6 26 23 29 20 41 . 43 62 15 51 Melee 272 | . . . 13 4 . . 4 30 3 26 5 10 23 . 1 90 . . 43 13 7 Ram 1 | . . . . . . . . . . . . . . . 1 . . . . . . Kick . | . . . . . . . . . . . . . . . . . . . . . . Crush 6 | . . . . . . . . . . . . . . . . 2 . 1 . 2 1 Escape Stasis 67 | . . . . . . . . 8 . 32 . . . . . 27 . . . . . Rewire 31 | . . . . . . . 2 3 1 1 2 . . . . 1 . . 7 . 14 Trap 47 | . . . . . . . 47 . . . . . . . . . . . . . . Miscellaneous . | . . . . . . . . . . . . . . . . . . . . . . Route ------- -11/Scrapyard -10/Materials (discovered 4 exits: *Mat x3 / [*Min]) -10/Mines (discovered 3 exits: *Mat x2 / [*Sub]) -9/Materials (discovered 5 exits: *Mat x3 / *Min x2) -9/Mines (discovered 2 exits: *Mat / *Exi) -9/Exiles -8/Mines (discovered 2 exits: *Mat x2) -8/Materials (discovered 2 exits: *Fac / Gar) -8/Garrison (discovered 3 exits: *Mat x3) -8/Materials -8/Garrison (discovered 3 exits: *Fac x2 / *Mat) -8/Materials (discovered 2 exits: *Fac / Gar) -8/Garrison -7/Factory -7/Waste -7/Factory -6/Factory (discovered 7 exits: [*Fac x3] / [*Low x2] / Gar / Gar) -6/Waste -6/Factory -6/Garrison (discovered 2 exits: *Fac x2) -6/Factory -6/Garrison (discovered 1 exit: [*Fac]) History --------- Turn | Location | Event 27 | -11/Scrapyard | Discovered new exit (range 16) 82 | -11/Scrapyard | Entered Materials 272 | -10/Materials | Discovered new exit (range 14) 326 | -10/Materials | Build established: Mutant 462 | -10/Materials | Discovered new exit (range 15) 547 | -10/Materials | Discovered new exit (range 7) 616 | -10/Materials | Identified exit to Materials 654 | -10/Materials | Learned 2 Storage zone layouts 701 | -10/Materials | Learned 2 Mines zone layouts 708 | -10/Materials | Learned location of 1 exit from Recycling 715 | -10/Materials | Learned 8 Materials zone layouts 730 | -10/Materials | Learned Storage trap positions 868 | -10/Materials | Entered Mines 941 | -10/Mines | Excavation squad dispatched 941 | -10/Mines | A large section of the Mines collapsed 992 | -10/Mines | System corruption reached 10% 1085 | -10/Mines | Learned location of 1 exit from Materials 1155 | -10/Mines | YI-UF0 nonchalantly dropped a Grenade Launcher on the ground 1248 | -10/Mines | Discovered new exit (range 13) 1300 | -10/Mines | Discovered exit to Materials (range 6) 1426 | -10/Mines | Learned location of Storage (-7) 1430 | -10/Mines | Entered Materials 1430 | -9/Materials | Evolved 2 slots: Utility x1, Weapon x1 1431 | -9/Materials | Identified exit to Mines 1432 | -9/Materials | Identified exit to Materials 1900 | -9/Materials | Build established: Gunner 2296 | -9/Materials | Lost 4 parts (1u3w) 2487 | -9/Materials | Build established: Mutant 2499 | -9/Materials | Learned 4 Materials zone layouts 2551 | -9/Materials | Learned Storage stockpile data 2591 | -9/Materials | Learned location of Zion (-6) 2623 | -9/Materials | Learned location of 1 exit from Storage 2647 | -9/Materials | Learned 4 Recycling zone layouts 2662 | -9/Materials | Learned Storage emergency access door positions 2850 | -9/Materials | Core integrity fell below 50% 2887 | -9/Materials | Central database locked down 3144 | -9/Materials | Build established: Gunner 3364 | -9/Materials | Entered Mines 3364 | -9/Mines | Accompanied by 1 ally 3365 | -9/Mines | Assembled infested the area 3370 | -9/Mines | Assisted by a Guerilla fighting off Assembled 3376 | -9/Mines | Crushed by falling debris 3376 | -9/Mines | Core integrity fell below 20% 3385 | -9/Mines | Met a Derelict shopkeep closing up shop 3405 | -9/Mines | Learned Materials stockpile data 3665 | -9/Mines | Discovered exit to Materials (range 14) 3686 | -9/Mines | Deemed a non-threat by the Exiles lab entrance 3686 | -9/Mines | Discovered new exit (range 5) 3695 | -9/Mines | Entered Exiles 3695 | -9/Exiles | Accompanied by 1 ally 3721 | -9/Exiles | Met 8R-AWN 3740 | -9/Exiles | Met EX-HEX 3767 | -9/Exiles | Met EX-BIN 3782 | -9/Exiles | Met EX-DEC 3958 | -9/Exiles | Discovered new exit (range 15) 3975 | -9/Exiles | Entered Mines 3975 | -8/Mines | Accompanied by 1 ally 4029 | -8/Mines | Discovered exit to Materials (range 15) 4121 | -8/Mines | Discovered exit to Materials (range 12) 4425 | -8/Mines | Entered Materials 4425 | -8/Materials | Accompanied by 1 ally 4425 | -8/Materials | Evolved 2 slots: Power x1, Utility x1 4780 | -8/Materials | Discovered new exit (range 5) 5034 | -8/Materials | Identified exit to Garrison 5073 | -8/Materials | Entered Garrison 5073 | -8/Garrison | Accompanied by 3 allies 5103 | -8/Garrison | Triggered checkpoint 5119 | -8/Garrison | Triggered checkpoint 5124 | -8/Garrison | Garrison Relay disabled 5140 | -8/Garrison | Discovered new exit (range 57) 5140 | -8/Garrison | Discovered new exit (range 45) 5140 | -8/Garrison | Discovered new exit (range 87) 5313 | -8/Garrison | Triggered checkpoint 5315 | -8/Garrison | Triggered checkpoint 5362 | -8/Garrison | Lost 4 parts (1p1n2w) 5368 | -8/Garrison | Lost 5 allies 5532 | -8/Garrison | Installed Relay Interface Framework 5590 | -8/Garrison | Core integrity fell below 50% 5661 | -8/Garrison | Garrison Relay disabled 5687 | -8/Garrison | Triggered checkpoint 5881 | -8/Garrison | Triggered checkpoint 5937 | -8/Garrison | Expanded RIF knowledge: Zone Cloak 5962 | -8/Garrison | Entered Materials 5962 | -8/Materials | Accompanied by 3 allies 6152 | -8/Materials | Identified exit to Garrison 6245 | -8/Materials | Lost 3 allies 6250 | -8/Materials | Entered Garrison 6250 | -8/Garrison | Accompanied by 1 ally 6289 | -8/Garrison | Triggered checkpoint 6331 | -8/Garrison | Garrison Relay disabled 6340 | -8/Garrison | Triggered checkpoint 6373 | -8/Garrison | Discovered new exit (range 5) 6462 | -8/Garrison | Triggered checkpoint 6525 | -8/Garrison | Lost 3 allies 6635 | -8/Garrison | Core integrity fell below 20% 6649 | -8/Garrison | Rescued a captive Derelict 6651 | -8/Garrison | Rescued a captive Derelict 6666 | -8/Garrison | Discovered new exit (range 10) 6732 | -8/Garrison | Lost 3 allies 6736 | -8/Garrison | Triggered checkpoint 6769 | -8/Garrison | Garrison Relay disabled 6886 | -8/Garrison | Triggered checkpoint 6956 | -8/Garrison | Discovered new exit (range 11) 6994 | -8/Garrison | Expanded RIF knowledge: Patrol Navigation 7002 | -8/Garrison | Triggered checkpoint 7051 | -8/Garrison | Lost 3 allies 7170 | -8/Garrison | Entered Materials 7313 | -8/Materials | Central database locked down 7452 | -8/Materials | Repaired Hvy. Armor Plating 7474 | -8/Materials | Discovered new exit (range 16) 7491 | -8/Materials | Identified exit to Garrison 7511 | -8/Materials | Entered Garrison 7511 | -8/Garrison | Accompanied by 5 allies 7638 | -8/Garrison | Lost 5 allies 7785 | -8/Garrison | Lost 3 parts (2p1w) 7805 | -8/Garrison | Triggered checkpoint 7878 | -8/Garrison | Discovered new exit (range 10) 7891 | -8/Garrison | Entered Factory 7891 | -7/Factory | Evolved 2 slots: Propulsion x1, Utility x1 8026 | -7/Factory | Lost 3 allies 8290 | -7/Factory | Build established: Mutant 8536 | -7/Factory | Lost 4 parts (1p2n1w) 8891 | -7/Factory | Sucked down chute 8891 | -7/Factory | Entered Waste 8892 | -7/Waste | Met a frightened Derelict 8906 | -7/Waste | EMP discharged 8916 | -7/Waste | Spotted C-40 Crusher 8935 | -7/Waste | Destroyed C-40 Crusher 8945 | -7/Waste | Spotted C-40 Crusher 8954 | -7/Waste | Found Unknown Protection 8954 | -7/Waste | Identified Damper Plating 8956 | -7/Waste | Spotted C-40 Crusher 8961 | -7/Waste | Spotted C-40 Crusher 8967 | -7/Waste | Crushed by Compactor (0 parts destroyed, 1 dropped) 8967 | -7/Waste | Spotted C-40 Crusher 8988 | -7/Waste | Spotted C-40 Crusher 8989 | -7/Waste | Crushed by Compactor (1 part destroyed, 1 dropped) 8996 | -7/Waste | Destroyed C-40 Crusher 8996 | -7/Waste | Destroyed C-40 Crusher 9006 | -7/Waste | EMP discharged 9006 | -7/Waste | System corruption reached 10% 9036 | -7/Waste | Destroyed C-40 Crusher 9045 | -7/Waste | Destroyed C-40 Crusher 9106 | -7/Waste | EMP discharged 9176 | -7/Waste | Destroyed C-40 Crusher 9206 | -7/Waste | EMP discharged 9225 | -7/Waste | Discovered new exit (range 11) 9241 | -7/Waste | Entered Factory 9371 | -7/Factory | Core integrity fell below 50% 9465 | -7/Factory | Discovered new exit (range 13) 9510 | -7/Factory | System corruption reached 30% 9524 | -7/Factory | Entered another Factory area 9524 | -6/Factory | Evolved 2 slots: Propulsion x1, Utility x1 9552 | -6/Factory | Lost 5 parts (1p1n3w) 9856 | -6/Factory | Lost 6 parts (2p1n1u2w) 9998 | -6/Factory | Hacking Suite fried by hacking feedback 10147 | -6/Factory | Allied Derelicts emerged from ambush trap array 10153 | -6/Factory | Build established: Hacker-Mutant 10176 | -6/Factory | Discovered new exit (range 6) 10206 | -6/Factory | Discovered new exit (range 10) 10209 | -6/Factory | Discovered new exit (range 21) 10475 | -6/Factory | Identified exit to Garrison 10534 | -6/Factory | Build established: Hacker-Sprinter 10590 | -6/Factory | Discovered new exit (range 5) 10662 | -6/Factory | Fabricated Enh. Force Lance? 10843 | -6/Factory | Garrison activated, responded to threat 10907 | -6/Factory | Loaded intel: 4 garrison access locations 10924 | -6/Factory | First assault squad dispatched 10945 | -6/Factory | Identified exit to Garrison 10982 | -6/Factory | Discovered new exit (range 6) 11000 | -6/Factory | Spotted B-75 Beast 11008 | -6/Factory | Learned location of Upper Caves (-5) 11050 | -6/Factory | Core integrity fell below 50% 11053 | -6/Factory | Lost 3 parts (1p2w) 11071 | -6/Factory | Learned location of 1 exit from Hub_04(d) 11085 | -6/Factory | Learned Hub_04(d) terminal intel 11100 | -6/Factory | Manually triggered Chute Trap 11100 | -6/Factory | Sucked down chute 11100 | -6/Factory | Entered Waste 11100 | -6/Waste | The area was eerily silent 11129 | -6/Waste | Lost 3 parts (2n1u) 11180 | -6/Waste | Found Damper Plating 11457 | -6/Waste | Discovered new exit (range 14) 11484 | -6/Waste | Entered Factory 11624 | -6/Factory | Build established: Scavenger-Tank 11647 | -6/Factory | Fabricated M-28 Smith (x1) 11932 | -6/Factory | Repaired Beamcaster 11971 | -6/Factory | Repaired Hrd. Medium Armor Plating 12001 | -6/Factory | Identified exit to Garrison 12001 | -6/Factory | Entered Garrison 12135 | -6/Garrison | Build established: Scavenger-Mutant 12223 | -6/Garrison | Phase Generator disabled 12321 | -6/Garrison | Triggered checkpoint 12334 | -6/Garrison | Garrison Relay disabled 12389 | -6/Garrison | Triggered checkpoint 12391 | -6/Garrison | Triggered checkpoint 12492 | -6/Garrison | Garrison Relay disabled 12515 | -6/Garrison | Garrison Relay disabled 12554 | -6/Garrison | Build established: Scavenger-Tank 12562 | -6/Garrison | Discovered new exit (range 2) 12584 | -6/Garrison | Spotted B-75 Beast 12584 | -6/Garrison | Spotted B-75 Beast 12649 | -6/Garrison | Triggered checkpoint 12789 | -6/Garrison | Expanded RIF knowledge: Code Merge 12819 | -6/Garrison | Triggered checkpoint 12923 | -6/Garrison | Garrison Relay disabled 12930 | -6/Garrison | Garrison Relay disabled 12953 | -6/Garrison | Garrison Relay disabled 12958 | -6/Garrison | Garrison Relay disabled 13067 | -6/Garrison | Garrison Relay disabled 13093 | -6/Garrison | Discovered new exit (range 9) 13114 | -6/Garrison | Entered Factory 13296 | -6/Factory | Build established: Bothacker-Tank 13721 | -6/Factory | Identified exit to Garrison 13838 | -6/Factory | Core integrity fell below 20% 13843 | -6/Factory | Garrison activated, responded to threat 13857 | -6/Factory | Entered Garrison 13857 | -6/Garrison | Accompanied by 2 allies 13887 | -6/Garrison | Lost 3 allies 13903 | -6/Garrison | Triggered checkpoint 13915 | -6/Garrison | Triggered checkpoint 13919 | -6/Garrison | Garrison Relay disabled 13959 | -6/Garrison | Expanded RIF knowledge: Alert ID Control 14227 | -6/Garrison | Triggered checkpoint 14292 | -6/Garrison | Lost 7 allies 14378 | -6/Garrison | Destroyed 9 combat bots 14455 | -6/Garrison | Discovered new exit (range 10) 14508 | -6/Garrison | Destroyed by P-70 Sage with High-powered Shock Rifle Last Messages --------------- 14341_ Lgt. Nuclear Core destroyed. 14342_ Destroyed Shock Rifle. 14342_ P-60 Hacker destroyed. 14345_ Destroyed Lgt. Treads. 14345_ Y-54 Guardian Flak Gun blasted off. 14347_ Destroyed Lgt. Treads. 14350_ Y-54 Guardian destroyed. 14365_ Hrd. Medium Armor Plating destroyed. 14374_ Ended siege mode. 14378_ Acquired 36 matter. 14380_ Y-54 Guardian suffers critical hit (Blast). 14380_ Destroyed Imp. Heat Sink. 14380_ Y-54 Guardian destroyed. 14387_ Acquired 28 matter. 14388_ Acquired 24 matter. 14391_ Acquired 2 matter. 14411_ Acquired 127 matter. 14427_ Acquired Proton Cannon. 14455_ EXIT=FOUND Map ----- +----------------------------------------------------+ | ?????????????????????????????????????????????????? | | ?????????????????????????????????????????????????? | | ?????????????????????????????????????????????????? | | ?????????????????????????????????????????????????? | | ?????????????????????????????????????????????????? | | ?????????????????????????????????????????????????? | | ?????????????????????????????????????????????????? | | ?????????????????????????????????????????????????? | | ????????????????????????#####????????????????????? | | ???????????????????????? #????????????????????? | | ????????????????????????< ????????????????????? | | ???????????????????????? #????????????????????? | | ????????????????????????# #????????????????????? | | ????????????????????????# #?????????????+??????? | | ???????????????????????? #????????????????????? | | ????????????????????????# #????????????????????? | | ????????????????????????# #????????????????????? | | ????????????????????????# #????????????????????? | | ????????????????????????# #????????????????????? | | ??????????????######??### #????????????????????? | | ??????????????#!!!!#### ;^ #????????????????????? | | ???????????#### +% ^#?????????????+??????? | | ???????????# +%^%#????????????????????? | | ???????????# ##]]] ####=;^==#????????????????????? | | ???????????# ?######??###[*%#????????????????????? | | ???????????#????????????#@*=#????????????????????? | | ????????????????????????#= #????????????????????? | | ????????????????????????# #????????????????????? | | ????????????????????????# #????????????????????? | | ???????????????????????## #???+?+???????+??????? | | ???????????????????????#; #????????????????????? | | ???????????????????????## #?+?????+????????????? | | ????????????????????????# #????????????????????? | | ???????????????????????## #???+?+??????????????? | | ???????????????????????#" #????????????????????? | | ???????????????????######p|!#####+#???????????+??? | | ???????????????????+ =!! ???????? | | ???????????????????# ####!! #######??????????????? | | ???????????????????# #??#=!=;#???????????????????? | | ???????????????????# #??# *[##???????????????????? | | ????????+??????????# #??# #????????????????????? | | ???????????????????# #??#= ##???????????????????? | | #+###""""###+####### #### T#???????????????????? | | ##???????????????????? | | ^ #????????????????????? | | ^^ #????????????????????? | | ???# ## ###############????????????????????? | | ## ## ###????????????????????????????????? | | #????????????????????????????????? | | = #????????????????????????????????? | +----------------------------------------------------+ Best States ------------- Heat Dissipation 64 Coolant Potential 65 Energy Generation 34 Energy Capacity 515 Matter Stores 300 Matter Capacity 300 Sight Range 22 Terrain Scan Range 16 Terrain Scan Density 10 Additional Mass Support 9 Armor Coverage 1600 Resistance: EM 90 Propulsion Shielding 66 Weapon Shielding 66 Evasion (%) 64 Targeting Accuracy 20 Melee Accuracy 11 Core Analysis 6 Recoil Reduction 4 Offensive Hacking 30 Relay Coupler Types 4 Relay Coupler Value 133 Authchip Count 2 Trap Extractor Capacity 6 Item Schematics ----------------- Hacking Suite | -9/Materials | Scanalyzed Sml. Storage Unit | -9/Materials | Extracted Visual Processing Unit | -9/Materials | Extracted Adv. System Shield | -6/Factory | Hacked Hvy. Treads | -6/Factory | Scanalyzed Robot Schematics ------------------ M-28 Smith | -6/Factory | Downloaded Fabricated ------------ Enh. Force Lance | x2 | -6/Factory | Preloaded M-28 Smith | x1 | -6/Factory Repaired ---------- Hvy. Armor Plating | 21% | -8/Materials Beamcaster | 32% | -6/Factory Hrd. Medium Armor Plating | 25% | -6/Factory Studied --------- Arm. Wheel | -9/Materials | Hacked Com. Wheel | -9/Materials | Hacked Hvy. EM Pulse Gun | -8/Materials | Hacked Cesium-ion Thruster | -6/Factory | Hacked Imp. Surge Thruster | -6/Factory | Hacked Remote Datajack | -6/Factory | Hacked Alien Tech Used ----------------- None Achievements -------------- None Challenges ------------ None Game ------ Seed GravityAssemblyChainsaw Manual? 0 Play Time 02:49:14 Cumulative 707.6 hours Start 2025.11.26 @ 15:51:13 End 2025.11.26 @ 20:51:15 Sessions 3 Manual Loads 0 Difficulty Rogue Special Mode None Game No. 304 Rogue 304 Adventurer 0 Explorer 0 Win Type - Total 72 Types 38/4/11/5/6/1/1/3/0/3 Lore% 97 Gallery% 89 Achievement% 80 Wizard Run 0 Options --------- Layout 1 ASCII 0 Keyboard 0 Movement Numpad Keybinds 0 Fullscreen 1 Font 24/Smallcaps Map View 50x35 Zoom Use 0% Tactical HUD 1 Map Filters NONE Filters NONE Steam 1 RUN: b4fd9e38-5bff-424a-a51b-be0e501dd986